bitfinex-derivatives/quotes_BTCF0:USTF0_20241020
["timestamp","ask_amount","ask_price","bid_price","bid_amount"]
[1729383692085,0.11612506,68498.0,68497.0,0.04386098]
[1729383692291,0.02620506,68498.0,68497.0,0.04386098]
[1729383692593,0.1044528,68499.0,68497.0,0.04386098]
[1729383692788,0.1044528,68499.0,68498.0,0.0002]
[1729383694294,0.0414328,68499.0,68498.0,0.0002]
[1729383695194,0.0414328,68499.0,68498.0,0.04386098]
[1729383698104,0.0414328,68499.0,68498.0,0.0002]
[1729383700996,0.0414328,68499.0,68498.0,0.04386098]
[1729383702293,0.0414328,68499.0,68498.0,0.0002]
[1729383706100,0.0414328,68499.0,68498.0,0.04386098]
[1729383710006,0.0414328,68499.0,68498.0,0.0002]
[1729383726217,0.0414328,68499.0,68498.0,0.04387477]
[1729383728817,0.1144298,68499.0,68498.0,0.04387477]
[1729383729822,0.1144298,68499.0,68498.0,0.0002]
[1729383730121,0.0414328,68499.0,68498.0,0.0002]
[1729383730924,0.0414328,68499.0,68498.0,0.04387477]
[1729383735318,0.0414328,68499.0,68498.0,0.0002]
[1729383735721,0.1313128,68499.0,68498.0,0.0002]
[1729383737422,0.1313128,68499.0,68498.0,0.04387003]
[1729383740025,0.1313128,68499.0,68498.0,0.0002]
[1729383742826,0.0414328,68499.0,68498.0,0.0002]
[1729383743128,0.1317528,68499.0,68498.0,0.0002]
[1729383745926,0.1317528,68499.0,68498.0,0.04387003]
[1729383747525,0.1317528,68499.0,68498.0,0.0002]
[1729383751322,0.1317528,68499.0,68498.0,0.04387003]
[1729383752421,0.0414328,68499.0,68498.0,0.11686803]
[1729383752619,0.1317528,68499.0,68498.0,0.073198]
[1729383754335,0.0414328,68499.0,68498.0,0.073198]
[1729383762443,0.0414328,68499.0,68498.0,0.0002]
[1729383765837,0.0414328,68499.0,68498.0,0.04386363]
[1729383767339,0.0414328,68499.0,68498.0,0.0002]
[1729383767740,0.1144298,68499.0,68498.0,0.04386433]
[1729383768343,0.1144298,68499.0,68498.0,0.0002]
[1729383769735,0.20307488,68499.0,68498.0,0.0002]
[1729383769940,0.23487488,68499.0,68498.0,0.0002]
[1729383770245,0.1790298,68499.0,68498.0,0.0002]
[1729383771835,0.7790298,68499.0,68498.0,0.0002]
[1729383772056,0.40414938,68499.0,68488.0,0.04366568]
[1729383772343,0.3608,68489.0,68484.0,0.04366568]
[1729383772545,0.073012,68485.0,68484.0,0.04366568]
[1729383772743,0.073013,68484.0,68483.0,0.04366568]
[1729383772942,0.073014,68483.0,68482.0,0.04366568]
[1729383773144,0.073014,68483.0,68480.0,0.04366568]
[1729383773340,0.3608,68481.0,68479.0,0.04366568]
[1729383773541,0.073017,68480.0,68479.0,0.04364412]
[1729383773851,0.073017,68480.0,68478.0,0.04364412]
[1729383774046,0.08996,68479.0,68478.0,0.04364412]
[1729383774249,0.08996,68479.0,68476.0,0.04364412]
[1729383774250,0.162978,68479.0,68476.0,0.04364412]
[1729383775251,0.08996,68479.0,68475.0,0.04360884]
[1729383775553,0.073022,68475.0,68474.0,0.00219034]
[1729383775747,0.433822,68475.0,68474.0,0.00219034]
[1729383781459,0.433822,68475.0,68459.0,0.11664784]
[1729383781460,0.073034,68465.0,68459.0,0.11664784]
[1729383781756,0.08996,68464.0,68459.0,0.073039]
[1729383782557,0.073037,68462.0,68459.0,0.073039]
[1729383783257,0.073037,68462.0,68455.0,0.40640884]
[1729383783461,0.073037,68461.0,68460.0,0.073038]
[1729383785567,0.02615629,68461.0,68460.0,0.073038]
[1729383785756,0.0002,68462.0,68457.0,0.3608]
[1729383785953,0.0002,68462.0,68461.0,0.073237]
[1729383798971,0.0002,68462.0,68461.0,0.11680048]
[1729383799167,0.0002,68462.0,68461.0,0.073237]
[1729383799569,0.0002,68462.0,68461.0,0.11682553]
[1729383799759,0.0002,68462.0,68461.0,0.073237]
[1729383799969,0.0002,68462.0,68461.0,0.04378853]
[1729383800177,0.073236,68462.0,68461.0,0.0002]
[1729383800375,0.13008587,68462.0,68461.0,0.0002]
[1729383801270,0.13008587,68462.0,68461.0,0.04378853]
[1729383802164,0.13008587,68462.0,68461.0,0.0002]
[1729383802477,0.073042,68457.0,68456.0,0.04364263]
[1729383802686,0.073043,68456.0,68455.0,0.04364263]
[1729383802864,0.073043,68456.0,68451.0,0.05822671]
[1729383802865,0.073044,68455.0,68454.0,0.04364263]
[1729383803279,0.3608,68458.0,68453.0,0.04367486]
[1729383803576,0.073045,68454.0,68450.0,0.13127571]
[1729383803770,0.163726,68453.0,68450.0,0.13127571]
[1729383805070,0.073048,68452.0,68450.0,0.13127571]
[1729383807782,0.09068,68451.0,68450.0,0.13127571]
[1729383809283,0.073048,68452.0,68450.0,0.13127571]
[1729383809471,0.163728,68452.0,68451.0,0.05842671]
[1729383809670,0.163728,68452.0,68451.0,0.05844701]
[1729383810965,0.163728,68452.0,68451.0,0.073248]
[1729383810966,0.073048,68452.0,68451.0,0.073248]
[1729383811271,0.163768,68452.0,68451.0,0.13149551]
[1729383812084,0.163768,68452.0,68451.0,0.073248]
[1729383813677,0.073048,68452.0,68451.0,0.073248]
[1729383814475,0.073043,68456.0,68453.0,0.073046]
[1729383814682,0.04705176,68455.0,68454.0,0.433845]
[1729383814877,0.04705176,68455.0,68454.0,0.49206953]
[1729383815075,0.04705176,68455.0,68454.0,0.433845]
[1729383815683,0.09092,68457.0,68455.0,0.073044]
[1729383815885,0.09092,68457.0,68456.0,0.0002]
[1729383818387,0.0002,68457.0,68456.0,0.0002]
[1729383818681,0.0002,68457.0,68456.0,0.13145802]
[1729383818880,0.0002,68457.0,68456.0,0.073243]
[1729383819283,0.0002,68457.0,68456.0,0.13145802]
[1729383820783,0.0002,68457.0,68456.0,0.073243]
[1729383821087,0.0002,68464.0,68456.0,0.073243]
[1729383821088,0.073026,68473.0,68456.0,0.29949564]
[1729383821287,0.09072,68471.0,68467.0,0.07303]
[1729383821592,0.09072,68471.0,68470.0,0.0002]
[1729383823884,0.0261995,68476.0,68470.0,0.0002]
[1729383824182,0.073026,68472.0,68470.0,0.0002]
[1729383825484,0.163706,68472.0,68470.0,0.0002]
[1729383826385,0.073026,68472.0,68470.0,0.0002]
[1729383826690,0.163706,68472.0,68470.0,0.0002]
[1729383834798,0.073027,68471.0,68470.0,0.0002]
[1729383842203,0.091,68475.0,68470.0,0.0002]
[1729383842503,0.433818,68479.0,68474.0,0.073024]
[1729383842795,0.073019,68478.0,68474.0,0.073224]
[1729383843991,0.073019,68478.0,68474.0,0.0002]
[1729383844190,0.073019,68478.0,68475.0,0.073022]
[1729383845389,0.073021,68477.0,68474.0,0.0002]
[1729383845594,0.3608,68479.0,68474.0,0.0002]
[1729383845595,0.073022,68476.0,68474.0,0.0002]
[1729383847503,0.073022,68475.0,68474.0,0.0002]
[1729383853510,0.09964674,68475.0,68474.0,0.0002]
[1729383857610,0.11762474,68475.0,68474.0,0.0002]
[1729383857911,0.11762474,68475.0,68474.0,0.13143001]
[1729383860416,0.11762474,68475.0,68474.0,0.073224]
[1729383862607,0.11762474,68475.0,68474.0,0.0002]
[1729383862813,0.19064674,68475.0,68474.0,0.0002]
[1729383873121,0.19064674,68475.0,68474.0,0.05840601]
[1729383874438,0.091,68475.0,68474.0,0.05840601]
[1729383874639,0.073019,68479.0,68474.0,0.05840601]
[1729383874934,0.163779,68479.0,68478.0,0.0002]
[1729383876934,0.09076,68480.0,68478.0,0.073219]
[1729383877129,0.09076,68480.0,68479.0,0.073218]
[1729383883437,0.163777,68480.0,68479.0,0.0002]
[1729383888237,0.195277,68480.0,68479.0,0.0002]
[1729383889333,0.163777,68480.0,68479.0,0.0002]
[1729383889649,0.073017,68480.0,68479.0,0.0002]
[1729383899242,0.02631546,68481.0,68479.0,0.0002]
[1729383899440,0.02631546,68481.0,68480.0,0.0002]
[1729383900648,0.0002,68481.0,68480.0,0.0002]
[1729383911351,0.073216,68481.0,68480.0,0.0002]
[1729383914353,0.163576,68481.0,68480.0,0.0002]
[1729383921357,0.524376,68481.0,68480.0,0.0002]
[1729383921668,0.524256,68481.0,68480.0,0.0002]
[1729383935967,0.163456,68481.0,68480.0,0.0002]
[1729383936177,0.524256,68481.0,68480.0,0.04393217]
[1729383936974,0.524256,68481.0,68480.0,0.0002]
[1729383937193,0.524256,68481.0,68480.0,0.04393217]
[1729383937779,0.524256,68481.0,68480.0,0.0002]
[1729383937968,0.524256,68481.0,68480.0,0.04394068]
[1729383938874,0.524256,68481.0,68480.0,0.0002]
[1729383939074,0.524256,68481.0,68480.0,0.04394365]
[1729383939470,0.524256,68481.0,68480.0,0.0002]
[1729383939670,0.524256,68481.0,68480.0,0.04394668]
[1729383941182,0.524256,68481.0,68480.0,0.0002]
[1729383942075,0.45124,68481.0,68480.0,0.0002]
[1729383944770,0.45124,68481.0,68480.0,0.04396059]
[1729383945284,0.45124,68481.0,68480.0,0.0002]
[1729383946067,0.45124,68481.0,68480.0,0.04396059]
[1729383948083,0.45124,68481.0,68480.0,0.04396036]
[1729383950580,0.45124,68481.0,68480.0,0.0002]
[1729383951290,0.45124,68481.0,68480.0,0.04396036]
[1729383951785,0.09044,68481.0,68480.0,0.04396036]
[1729383951979,0.45124,68481.0,68480.0,0.04395944]
[1729383952198,0.45124,68481.0,68480.0,0.0002]
[1729383952381,0.524256,68481.0,68480.0,0.04396087]
[1729383953888,0.45124,68481.0,68480.0,0.04396087]
[1729383954480,0.69374,68481.0,68480.0,0.04396087]
[1729383954685,0.45124,68481.0,68480.0,0.04396087]
[1729383956095,0.45124,68481.0,68480.0,0.0002]
[1729383956992,0.524256,68481.0,68480.0,0.0002]
[1729383958993,0.524256,68481.0,68480.0,0.04396126]
[1729383959706,0.524256,68481.0,68480.0,0.0002]
[1729383965993,0.524056,68481.0,68480.0,0.0002]
[1729383968198,0.073025,68473.0,68472.0,0.04376126]
[1729383968502,0.073025,68473.0,68466.0,0.00219085]
[1729383968503,0.44127605,68473.0,68471.0,0.04376126]
[1729383968689,0.09004,68472.0,68470.0,0.04376126]
[1729383970094,0.09004,68472.0,68471.0,0.04376126]
[1729383970397,0.09004,68472.0,68470.0,0.04376126]
[1729383970998,0.11601914,68472.0,68471.0,0.04376126]
[1729383971602,0.11601914,68472.0,68470.0,0.04376126]
[1729383971802,0.11601914,68472.0,68471.0,0.04376126]
[1729383972103,0.11601914,68472.0,68470.0,0.04376126]
[1729383972699,0.11601914,68472.0,68471.0,0.04376126]
[1729383973094,0.11601914,68472.0,68470.0,0.11678926]
[1729383975401,0.11601914,68472.0,68471.0,0.073027]
[1729383975402,0.02597914,68472.0,68471.0,0.073027]
[1729383975600,0.017019,68472.0,68471.0,0.04376126]
[1729383975799,0.017019,68472.0,68468.0,0.05826351]
[1729383975800,0.017019,68472.0,68470.0,0.04376126]
[1729383976006,0.017019,68472.0,68471.0,0.04376126]
[1729383976898,0.3608,68475.0,68474.0,0.073024]
[1729383977092,0.45084,68475.0,68474.0,0.073024]
[1729383977908,0.45084,68475.0,68474.0,0.073224]
[1729383978608,0.09004,68475.0,68474.0,0.073224]
[1729383979007,0.45084,68475.0,68474.0,0.073224]
[1729383979597,0.3608,68475.0,68474.0,0.073224]
[1729383979801,0.45084,68475.0,68474.0,0.073224]
[1729383980200,0.45084,68475.0,68474.0,0.0002]
[1729383982905,0.523862,68475.0,68474.0,0.0002]
[1729383990515,0.523862,68475.0,68474.0,0.04396126]
[1729383992721,0.523862,68475.0,68474.0,0.04393693]
[1729383995116,0.433822,68475.0,68474.0,0.0002]
[1729383995416,0.163862,68475.0,68474.0,0.0002]
[1729383999129,0.09084,68475.0,68474.0,0.0002]
[1729384005924,0.10044359,68477.0,68474.0,0.0002]
[1729384006234,0.09084,68475.0,68474.0,0.0002]
[1729384014627,0.09084,68475.0,68474.0,0.04396999]
[1729384016025,0.09084,68475.0,68474.0,0.0002]
[1729384021937,0.09084,68475.0,68474.0,0.04397428]
[1729384021938,0.163862,68475.0,68474.0,0.04397428]
[1729384022843,0.163862,68475.0,68474.0,0.0002]
[1729384026346,0.17116056,68475.0,68474.0,0.04398067]
[1729384026647,0.17116056,68475.0,68474.0,0.0002]
[1729384027333,0.09813856,68475.0,68469.0,0.04378067]
[1729384027649,0.073029,68469.0,68468.0,0.04378067]
[1729384028052,0.104829,68469.0,68468.0,0.04378067]
[1729384028438,0.104829,68469.0,68467.0,0.04378067]
[1729384029647,0.13086681,68469.0,68467.0,0.04378067]
[1729384029847,0.3608,68468.0,68467.0,0.04378067]
[1729384030052,0.13086681,68469.0,68467.0,0.04378067]
[1729384030448,0.43383,68468.0,68466.0,0.04378067]
[1729384030848,0.07303,68468.0,68466.0,0.04378067]
[1729384031043,0.43383,68468.0,68467.0,0.04378067]
[1729384031848,0.07303,68468.0,68467.0,0.04378067]
[1729384032355,0.43383,68468.0,68467.0,0.04378067]
[1729384034951,0.07303,68468.0,68467.0,0.04378067]
[1729384035150,0.43383,68468.0,68467.0,0.04378067]
[1729384035851,0.43383,68468.0,68465.0,0.04378067]
[1729384035852,0.073032,68466.0,68465.0,0.04378067]
[1729384036052,0.163192,68466.0,68465.0,0.04378067]
[1729384036455,0.163192,68466.0,68464.0,0.04378067]
[1729384038561,0.073033,68465.0,68464.0,0.04378067]
[1729384038746,0.073033,68465.0,68461.0,0.073037]
[1729384038747,0.073033,68465.0,68463.0,0.04378067]
[1729384039145,0.073034,68464.0,68463.0,0.04378067]
[1729384041159,0.073035,68463.0,68462.0,0.04378067]
[1729384041355,0.09016,68466.0,68461.0,0.04378067]
[1729384041552,0.073036,68462.0,68461.0,0.04378067]
[1729384041749,0.433836,68462.0,68461.0,0.04378067]
[1729384042660,0.433836,68462.0,68460.0,0.04378067]
[1729384042964,0.433836,68462.0,68458.0,0.073041]
[1729384042965,0.073037,68461.0,68459.0,0.04378067]
[1729384044059,0.073037,68461.0,68460.0,0.04378067]
[1729384044360,0.073038,68460.0,68459.0,0.04378067]
[1729384053158,0.073038,68460.0,68458.0,0.073041]
[1729384053561,0.07304,68459.0,68458.0,0.073041]
[1729384053960,0.07304,68459.0,68458.0,0.11677537]
[1729384054160,0.07304,68459.0,68458.0,0.073041]
[1729384057065,0.38726542,68462.0,68460.0,0.073038]
[1729384057280,0.38726542,68462.0,68461.0,0.0002]
[1729384059971,0.02646542,68462.0,68461.0,0.0002]
[1729384060275,0.073036,68463.0,68461.0,0.0002]
[1729384060473,0.073036,68463.0,68462.0,0.0002]
[1729384060875,0.18915217,68463.0,68462.0,0.0002]
[1729384061075,0.18915217,68463.0,68462.0,0.073236]
[1729384062279,0.09931217,68463.0,68462.0,0.073236]
[1729384062473,0.11611617,68463.0,68462.0,0.073236]
[1729384063285,0.08984,68463.0,68462.0,0.073236]
[1729384065376,0.08984,68463.0,68462.0,0.13149951]
[1729384065983,0.08984,68463.0,68462.0,0.073236]
[1729384068478,0.08984,68463.0,68462.0,0.0002]
[1729384068688,0.162875,68463.0,68462.0,0.05846351]
[1729384074288,0.162875,68463.0,68462.0,0.0002]
[1729384074585,0.162875,68463.0,68462.0,0.05846351]
[1729384075290,0.162875,68463.0,68462.0,0.0002]
[1729384081483,0.162875,68463.0,68462.0,0.04398001]
[1729384081681,0.162875,68463.0,68462.0,0.0002]
[1729384085090,0.33244,68463.0,68458.0,0.04378001]
[1729384085291,0.33244,68463.0,68456.0,0.04378001]
[1729384085292,0.3608,68459.0,68456.0,0.04378001]
[1729384085605,0.073043,68456.0,68455.0,0.04378001]
[1729384086102,0.073043,68456.0,68454.0,0.04378001]
[1729384086288,0.073043,68456.0,68455.0,0.04378001]
[1729384086491,0.073043,68456.0,68454.0,0.04378001]
[1729384087091,0.0319,68458.0,68454.0,0.04378001]
[1729384087092,0.073044,68455.0,68454.0,0.04378001]
[1729384088592,0.073044,68455.0,68453.0,0.04597122]
[1729384088798,0.08976,68454.0,68453.0,0.04597122]
[1729384089099,0.162805,68454.0,68453.0,0.04597122]
[1729384091800,0.162805,68454.0,68453.0,0.00219121]
[1729384092100,0.162805,68454.0,68453.0,0.04597122]
[1729384093395,0.08976,68454.0,68453.0,0.04597122]
[1729384094310,0.08976,68454.0,68453.0,0.07523721]
[1729384100310,0.08976,68454.0,68453.0,0.073046]
[1729384103014,0.073044,68455.0,68453.0,0.073046]
[1729384103220,0.04601268,68454.0,68453.0,0.073046]
[1729384105111,0.08976,68454.0,68453.0,0.073046]
[1729384105907,0.08976,68454.0,68452.0,0.08936351]
[1729384107110,0.073046,68453.0,68452.0,0.08936351]
[1729384107416,0.073046,68453.0,68452.0,0.0311]
[1729384110807,0.073046,68453.0,68451.0,0.02621668]
[1729384111006,0.073046,68453.0,68450.0,0.0323]
[1729384111716,0.073046,68453.0,68449.0,0.14587939]
[1729384111906,0.3916,68453.0,68445.0,0.07282939]
[1729384112209,0.073247,68452.0,68451.0,0.05838252]
[1729384112416,0.073247,68452.0,68450.0,0.05838252]
[1729384112618,0.073048,68451.0,68450.0,0.05838252]
[1729384113012,0.073053,68447.0,68445.0,0.09949799]
[1729384114211,0.073048,68451.0,68445.0,0.09949799]
[1729384114421,0.073053,68446.0,68445.0,0.09949799]
[1729384114607,0.073053,68446.0,68445.0,0.10646136]
[1729384114805,0.073053,68446.0,68445.0,0.1794458]
[1729384115409,0.073053,68446.0,68445.0,0.2525008]
[1729384116914,0.073053,68446.0,68445.0,0.17951636]
[1729384117116,0.073053,68446.0,68445.0,0.25249603]
[1729384117338,0.073053,68446.0,68445.0,0.25241672]
[1729384117818,0.073053,68446.0,68445.0,0.0997236]
[1729384118714,0.073053,68446.0,68445.0,0.17270327]
[1729384119213,0.073053,68446.0,68445.0,0.25242295]
[1729384119423,0.073053,68446.0,68445.0,0.25241774]
[1729384119721,0.073053,68446.0,68445.0,0.17270327]
[1729384120421,0.073053,68446.0,68445.0,0.0997236]
[1729384120622,0.073053,68446.0,68445.0,0.17270327]
[1729384120919,0.073053,68446.0,68445.0,0.0997236]
[1729384121216,0.073053,68446.0,68445.0,0.17270327]
[1729384121422,0.073053,68446.0,68445.0,0.0997236]
[1729384121913,0.0004,68452.0,68445.0,0.0997236]
[1729384122120,0.0004,68452.0,68449.0,0.05836546]
[1729384122326,0.073049,68450.0,68449.0,0.05836546]
[1729384122712,0.073049,68450.0,68448.0,0.05836546]
[1729384125017,0.08976,68449.0,68448.0,0.05836546]
[1729384125425,0.08976,68449.0,68448.0,0.05836208]
[1729384125918,0.08976,68449.0,68447.0,0.073052]
[1729384129024,0.08976,68449.0,68448.0,0.05836217]
[1729384129219,0.08976,68449.0,68448.0,0.05836213]
[1729384129726,0.08976,68449.0,68447.0,0.073052]
[1729384130115,0.08976,68449.0,68448.0,0.058362]
[1729384131119,0.08976,68449.0,68448.0,0.131413]
[1729384131424,0.08976,68449.0,68448.0,0.073051]
[1729384139231,0.09004,68449.0,68448.0,0.073051]
[1729384139633,0.45084,68449.0,68446.0,0.07297967]
[1729384139841,0.45084,68449.0,68446.0,0.05840345]
[1729384140033,0.45084,68449.0,68442.0,0.07297967]
[1729384140034,0.47743964,68449.0,68442.0,0.05840345]
[1729384140332,0.073057,68443.0,68442.0,0.05840345]
[1729384140534,0.073058,68442.0,68441.0,0.05840345]
[1729384140731,0.103658,68442.0,68441.0,0.05840345]
[1729384141328,0.073059,68441.0,68440.0,0.3608]
[1729384141533,0.103459,68441.0,68440.0,0.3608]
[1729384141836,0.103459,68441.0,68440.0,0.41920334]
[1729384142031,0.135659,68441.0,68440.0,0.41920334]
[1729384142231,0.135659,68441.0,68440.0,0.3608]
[1729384143935,0.135659,68441.0,68439.0,0.00219124]
[1729384144136,0.09004,68440.0,68439.0,0.00219124]
[1729384144441,0.1631,68440.0,68439.0,0.00219124]
[1729384150345,0.5239,68440.0,68439.0,0.00219124]
[1729384154144,0.1631,68440.0,68439.0,0.00219124]
[1729384154344,0.5239,68440.0,68439.0,0.00219124]
[1729384155443,0.1631,68440.0,68439.0,0.00219124]
[1729384155645,0.5239,68440.0,68439.0,0.00219124]
[1729384158942,0.1631,68440.0,68439.0,0.00219124]
[1729384159537,0.5239,68440.0,68439.0,0.00219124]
[1729384160744,0.1631,68440.0,68439.0,0.00219124]
[1729384160944,0.5239,68440.0,68439.0,0.00219124]
[1729384161149,0.1631,68440.0,68439.0,0.00219124]
[1729384161349,0.5239,68440.0,68439.0,0.00219124]
[1729384165153,0.5239,68440.0,68437.0,0.073062]
[1729384167757,0.43386,68440.0,68437.0,0.073062]
[1729384167956,0.09008,68439.0,68437.0,0.073062]
[1729384169453,0.09008,68439.0,68438.0,0.05840404]
[1729384170952,0.09008,68439.0,68438.0,0.13146604]
[1729384171553,0.3608,68440.0,68438.0,0.13146604]
[1729384171755,0.02624164,68442.0,68441.0,0.073059]
[1729384171951,0.09008,68442.0,68439.0,0.0002]
[1729384172152,0.09008,68442.0,68441.0,0.073259]
[1729384172952,0.0270143,68444.0,68441.0,0.073259]
[1729384173153,0.09008,68442.0,68441.0,0.073259]
[1729384175256,0.09008,68442.0,68441.0,0.1316682]
[1729384175455,0.09008,68442.0,68441.0,0.073259]
[1729384175658,0.09008,68442.0,68441.0,0.13166339]
[1729384177766,0.09008,68442.0,68441.0,0.05860439]
[1729384178262,0.09008,68442.0,68441.0,0.0002]
[1729384184465,0.163138,68442.0,68441.0,0.0002]
[1729384197684,0.162938,68442.0,68441.0,0.05860439]
[1729384198787,0.162938,68442.0,68441.0,0.0002]
[1729384199287,0.162938,68442.0,68441.0,0.05860439]
[1729384200484,0.08988,68442.0,68441.0,0.0002]
[1729384201386,0.0270143,68444.0,68441.0,0.0002]
[1729384201680,0.09008,68444.0,68443.0,0.073257]
[1729384201875,0.0002,68444.0,68443.0,0.073257]
[1729384202477,0.0002,68444.0,68443.0,0.22632241]
[1729384202685,0.0002,68444.0,68443.0,0.073257]
[1729384210496,0.12654837,68444.0,68443.0,0.02207308]
[1729384210683,0.18972255,68444.0,68443.0,0.073057]
[1729384212494,0.18972255,68444.0,68435.0,0.34331817]
[1729384212691,0.18952255,68443.0,68442.0,0.073058]
[1729384215689,0.18952255,68443.0,68438.0,0.073062]
[1729384215690,0.37945261,68443.0,68438.0,0.073062]
[1729384215893,0.26258055,68442.0,68438.0,0.073062]
[1729384216093,0.18952255,68441.0,68438.0,0.073062]
[1729384216291,0.18952255,68440.0,68438.0,0.073062]
[1729384216483,0.18952255,68439.0,68438.0,0.073062]
[1729384217901,0.37945261,68439.0,68438.0,0.073062]
[1729384218289,0.18952255,68439.0,68438.0,0.073062]
[1729384218486,0.26295885,68439.0,68438.0,0.073062]
[1729384218698,0.073063,68437.0,68435.0,0.07297967]
[1729384219399,0.073063,68437.0,68435.0,0.14604467]
[1729384219595,0.073063,68437.0,68435.0,0.073065]
[1729384220899,0.073063,68437.0,68435.0,0.14604467]
[1729384221097,0.073063,68437.0,68435.0,0.073065]
[1729384221498,0.073064,68436.0,68435.0,0.073065]
[1729384221798,0.08984,68436.0,68431.0,0.07297967]
[1729384222005,0.073067,68433.0,68430.0,0.07297967]
[1729384222304,0.073067,68433.0,68431.0,0.073069]
[1729384222305,0.0325,68432.0,68431.0,0.073069]
[1729384223822,0.105568,68432.0,68431.0,0.073069]
[1729384224319,0.105568,68432.0,68431.0,0.13145454]
[1729384225715,0.105568,68432.0,68431.0,0.073069]
[1729384226217,0.28967122,68432.0,68431.0,0.073069]
[1729384226817,0.57740322,68432.0,68422.0,0.073079]
[1729384227018,0.073074,68427.0,68423.0,0.073078]
[1729384227218,0.0002,68429.0,68423.0,0.073078]
[1729384227219,0.27713826,68426.0,68423.0,0.073078]
[1729384227416,0.14752326,68425.0,68423.0,0.073078]
[1729384227622,0.11422326,68424.0,68423.0,0.073078]
[1729384228017,0.18406585,68424.0,68423.0,0.073078]
[1729384228532,0.11422326,68424.0,68423.0,0.073078]
[1729384229625,0.18400816,68424.0,68423.0,0.073078]
[1729384230424,0.18730026,68424.0,68423.0,0.073078]
[1729384230626,0.073078,68423.0,68418.0,0.073082]
[1729384230827,0.07308,68421.0,68418.0,0.073082]
[1729384231133,0.18730326,68421.0,68418.0,0.073082]
[1729384231330,0.21880326,68421.0,68418.0,0.073082]
[1729384231516,0.073082,68419.0,68418.0,0.073082]
[1729384231832,0.073086,68416.0,68413.0,0.3608]
[1729384232124,0.20348573,68415.0,68413.0,0.3608]
[1729384232326,0.18649529,68414.0,68413.0,0.3608]
[1729384233524,0.073091,68412.0,68406.0,0.3608]
[1729384233727,0.0302,68411.0,68409.0,0.04378338]
[1729384233930,0.0302,68411.0,68408.0,0.11687738]
[1729384234133,0.0302,68411.0,68408.0,0.073094]
[1729384234134,0.0314,68410.0,68408.0,0.073094]
[1729384237824,0.104493,68410.0,68408.0,0.073094]
[1729384238830,0.104493,68410.0,68405.0,0.00219294]
[1729384238831,0.073095,68408.0,68405.0,0.00219294]
[1729384239025,0.433895,68408.0,68405.0,0.07528994]
[1729384239232,0.3608,68408.0,68405.0,0.00219294]
[1729384239434,0.073096,68406.0,68405.0,0.00219294]
[1729384239626,0.162936,68406.0,68405.0,0.00219294]
[1729384240227,0.073099,68404.0,68401.0,0.073101]
[1729384242239,0.08984,68406.0,68397.0,0.073105]
[1729384242240,0.0731,68402.0,68397.0,0.073105]
[1729384242626,0.0731,68402.0,68398.0,0.073104]
[1729384243343,0.0731,68402.0,68394.0,0.3608]
[1729384243344,0.0731,68402.0,68399.0,0.073103]
[1729384244239,0.0731,68402.0,68400.0,0.073103]
[1729384244644,0.3608,68402.0,68395.0,0.073108]
[1729384244847,0.361,68402.0,68394.0,0.3608]
[1729384245032,0.361,68402.0,68401.0,0.073101]
[1729384245234,0.38684304,68402.0,68401.0,0.073101]
[1729384246439,0.47672304,68402.0,68401.0,0.073101]
[1729384247531,0.38684304,68402.0,68401.0,0.073101]
[1729384247839,0.47672304,68402.0,68401.0,0.073101]
[1729384249037,0.38684304,68402.0,68401.0,0.073101]
[1729384249231,0.47672304,68402.0,68401.0,0.073101]
[1729384252435,0.073102,68401.0,68398.0,0.073105]
[1729384253139,0.073102,68401.0,68392.0,0.3608]
[1729384253140,0.073105,68398.0,68394.0,0.073109]
[1729384253335,0.073105,68398.0,68396.0,0.073106]
[1729384259243,0.13594002,68397.0,68396.0,0.073106]
[1729384260536,0.0004,68402.0,68401.0,0.073101]
[1729384260731,0.0002,68406.0,68405.0,0.073097]
[1729384261049,0.0002,68406.0,68405.0,0.073297]
[1729384261234,0.0002,68406.0,68405.0,1.111857]
[1729384263650,0.0002,68406.0,68405.0,1.17025377]
[1729384263845,0.0002,68406.0,68405.0,1.111857]
[1729384264049,0.0002,68406.0,68405.0,1.17025356]
[1729384264248,0.0002,68406.0,68405.0,1.111857]
[1729384264637,0.073296,68406.0,68405.0,0.0002]
[1729384265142,0.073296,68406.0,68405.0,0.04399886]
[1729384265345,0.073296,68406.0,68405.0,0.0002]
[1729384266033,0.09919642,68406.0,68405.0,0.0002]
[1729384278877,0.0731,68402.0,68401.0,0.00013431]
[1729384279169,0.48365158,68402.0,68401.0,0.00013431]
[1729384281368,0.57369158,68402.0,68401.0,0.00013431]
[1729384282674,0.48365158,68402.0,68401.0,0.00013431]
[1729384282880,0.57369158,68402.0,68401.0,0.00013431]
[1729384284077,0.21289158,68402.0,68401.0,0.00013431]
[1729384284883,0.12285158,68402.0,68401.0,0.00013431]
[1729384285183,0.21357158,68402.0,68401.0,0.00013431]
[1729384285384,0.12285158,68402.0,68401.0,0.00013431]
[1729384285574,0.21357158,68402.0,68401.0,0.00013431]
[1729384285777,0.16382,68402.0,68401.0,0.00013431]
[1729384293490,0.16382,68402.0,68401.0,0.04393317]
[1729384294383,0.16382,68402.0,68401.0,0.00013431]
[1729384294579,0.16382,68402.0,68401.0,0.05852593]
[1729384294790,0.16382,68402.0,68401.0,0.00013431]
[1729384295491,0.16382,68402.0,68401.0,0.05852593]
[1729384296084,0.16382,68402.0,68401.0,0.05865482]
[1729384297181,0.16382,68402.0,68401.0,0.00013431]
[1729384297387,0.16382,68402.0,68401.0,0.05865584]
[1729384298092,0.16382,68402.0,68401.0,0.00013431]
[1729384298291,0.16382,68402.0,68401.0,0.05865502]
[1729384298493,0.16382,68402.0,68401.0,0.00013431]
[1729384299293,0.16382,68402.0,68401.0,0.05865397]
[1729384299487,0.16382,68402.0,68401.0,0.00013431]
[1729384299893,0.0731,68402.0,68401.0,0.00013431]
[1729384300086,0.16382,68402.0,68401.0,0.00013431]
[1729384301098,0.82341272,68402.0,68391.0,0.33667739]
[1729384301394,0.73269272,68401.0,68391.0,0.33667739]
[1729384301596,0.0002,68399.0,68394.0,0.073108]
[1729384301794,0.73269272,68398.0,68394.0,0.073108]